bitfinex-derivatives/quotes_SOLF0:USTF0_20220109
["timestamp","ask_amount","ask_price","bid_price","bid_amount"]
[1641741497970,1.67380096,138.13,138.09,4.11352677]
[1641741499571,1.67380096,138.17,138.08,4.11352677]
[1641741499970,1.67380096,138.17,138.1,2.69273037]
[1641741500369,1.67380096,138.17,138.11,4.11352677]
[1641741501272,1.67380096,138.17,138.13,4.0]
[1641741501477,9.90485372,138.22,138.11,10.49352677]
[1641741501673,40.45713566,138.23,138.14,4.0]
[1641741501674,50.36198938,138.23,138.14,4.0]
[1641741501873,50.36198938,138.23,138.17,4.0]
[1641741502077,60.16846318,138.27,138.17,9.91]
[1641741502275,60.16846318,138.27,138.2,4.0]
[1641741502474,1.17065357,138.26,138.21,4.0]
[1641741502875,1.17065357,138.26,138.2,14.81896529]
[1641741503076,1.17065357,138.26,138.22,31.7750847]
[1641741503274,5.357e-05,138.26,138.22,31.7750847]
[1641741503477,5.357e-05,138.32,138.22,31.66479]
[1641741503674,20.54689608,138.32,138.22,38.89544799]
[1641741504276,5.357e-05,138.32,138.23,4.0]
[1641741504575,27.66479,138.33,138.22,27.66479]
[1641741504776,21.98733476,138.32,138.22,27.66479]
[1641741504978,2.42247323,138.31,138.23,2.68720517]
[1641741505377,21.98733476,138.3,138.23,2.68720517]
[1641741505579,2.0,138.27,138.23,2.68720517]
[1641741505778,7.696,138.27,138.22,27.66479]
[1641741506178,1.43830769,138.26,138.22,27.66479]
[1641741507280,8.39130769,138.26,138.22,27.66479]
[1641741507479,8.39130769,138.26,138.2,27.66479]
[1641741507778,10.39130769,138.26,138.2,27.66479]
[1641741507978,1.43830769,138.25,138.18,133.3852]
[1641741508179,1.43830769,138.25,138.16,67.3845]
[1641741508877,3.9999,138.24,138.17,4.11135943]
[1641741509478,1.43830769,138.23,138.17,4.11135943]
[1641741509678,9.72630769,138.23,138.17,4.11135943]
[1641741510080,1.43830769,138.22,138.17,4.11135943]
[1641741510378,1.43830769,138.21,138.17,4.11135943]
[1641741510980,1.43830769,138.2,138.18,27.66479]
[1641741511382,1.43830769,138.19,138.18,27.66479]
[1641741513182,1.43830769,138.19,138.16,67.3845]
[1641741513383,1.43830769,138.19,138.15,27.66479]
[1641741513782,1.43830769,138.18,138.17,4.11137817]
[1641741514182,1.43830769,138.18,138.16,4.11137817]
[1641741514584,7.69e-06,138.17,138.16,8.11137817]
[1641741514785,7.69e-06,138.17,138.16,4.11137817]
[1641741514984,7.69e-06,138.17,138.16,31.77616817]
[1641741515185,7.2374611,138.25,138.16,35.77616817]
[1641741515485,7.2374611,138.25,138.16,27.66479]
[1641741515684,2.0,138.26,138.16,27.66479]
[1641741515886,2.0,138.26,138.19,4.0]
[1641741516084,2.0,138.26,138.17,4.11123987]
[1641741516085,0.82224797,138.25,138.17,4.11123987]
[1641741517084,0.82224797,138.25,138.19,31.66479]
[1641741517284,0.82224797,138.25,138.19,27.66479]
[1641741518687,0.82224797,138.25,138.16,27.66479]
[1641741518887,8.94624797,138.25,138.21,4.0]
[1641741519087,2.0,138.26,138.24,27.66479]
[1641741519690,2.0,138.26,138.15,21.10399322]
[1641741519889,10.324,138.26,138.15,19.29599322]
[1641741520091,10.324,138.26,138.14,15.29599322]
[1641741520289,0.82215485,138.25,138.16,4.11077426]
[1641741520690,0.82215485,138.25,138.19,4.0]
[1641741521090,0.82215485,138.25,138.21,27.66479]
[1641741522996,5.485e-05,138.25,138.24,27.66479]
[1641741524095,22.52900468,138.33,138.24,31.66479]
[1641741524294,15.29599322,138.34,138.25,4.0]
[1641741524495,15.29599322,138.34,138.24,31.77406116]
[1641741524694,15.29599322,138.34,138.24,35.77406116]
[1641741524894,13.29619322,138.34,138.24,27.66479]
[1641741525095,2.41413241,138.34,138.24,59.32958]
[1641741525294,0.82180347,138.33,138.25,4.10901735]
[1641741525898,8.98780347,138.33,138.25,4.10901735]
[1641741526094,3.9999,138.29,138.25,4.10901735]
[1641741526299,8.063,138.29,138.24,27.66479]
[1641741526796,0.82180347,138.28,138.24,27.66479]
[1641741527395,9.97680347,138.28,138.24,27.66479]
[1641741527596,9.155,138.28,138.24,27.66479]
[1641741528195,0.82180347,138.27,138.24,27.66479]
[1641741529498,7.23301146,138.33,138.24,27.66479]
[1641741530098,2.41879226,138.32,138.24,27.66479]
[1641741530901,8.95579226,138.32,138.24,27.66479]
[1641741531302,2.41879226,138.31,138.24,27.66479]
[1641741531899,6.41869226,138.31,138.22,27.66479]
[1641741532399,3.9999,138.31,138.22,27.66479]
[1641741533002,3.9999,138.29,138.22,27.66479]
[1641741533202,12.5459,138.29,138.22,27.66479]
[1641741533805,3.9999,138.27,138.14,11.23510473]
[1641741534003,3.9999,138.25,138.14,67.7735]
[1641741534303,3.9999,138.23,138.14,69.6108]
[1641741534505,7.23798494,138.24,138.14,69.6108]
[1641741534704,7.23798494,138.24,138.15,4.11180651]
[1641741534905,9.6567772,138.24,138.15,6.79910875]
[1641741535105,27.66479,138.22,138.15,6.79910875]
[1641741535304,35.41679,138.22,138.15,6.79910875]
[1641741535904,35.41679,138.22,138.16,4.11180651]
[1641741536105,7.752,138.22,138.16,4.11180651]
[1641741536306,27.66479,138.24,138.15,4.11180651]
[1641741536704,51.97855601,138.27,138.15,4.11180651]
[1641741536705,47.97865601,138.27,138.15,4.11180651]
[1641741536904,7.23615181,138.27,138.15,4.11180651]
[1641741537105,34.90094181,138.27,138.17,27.66479]
[1641741537804,2.0,138.24,138.18,4.11180651]
[1641741538004,2.0,138.24,138.19,4.0]
[1641741538206,2.420937,138.26,138.2,4.0]
[1641741538405,2.420937,138.26,138.2,11.268]
[1641741538606,40.7425042,138.32,138.21,8.11180651]
[1641741538807,38.7425042,138.32,138.21,8.11180651]
[1641741539207,38.7425042,138.32,138.25,27.66479]
[1641741539407,2.4205091,138.33,138.25,36.79779]
[1641741540207,2.4205091,138.33,138.26,4.1089805]
[1641741540409,2.4205091,138.35,138.26,4.1089805]
[1641741540608,2.4205091,138.35,138.25,27.66479]
[1641741541208,7.23248834,138.34,138.25,27.66479]
[1641741541707,10.3595091,138.35,138.25,27.66479]
[1641741541708,2.4205091,138.35,138.25,27.66479]
[1641741541907,2.4205091,138.35,138.25,35.45879]
[1641741541908,2.4205091,138.33,138.25,35.45879]
[1641741542108,2.4205091,138.33,138.32,4.0]
[1641741542308,4.4205091,138.33,138.32,6.387]
[1641741542709,2.0,138.33,138.32,6.387]
[1641741543507,2.0,138.33,138.31,27.66479]
[1641741544109,37.52349156,138.41,138.32,4.0]
[1641741544307,9.85870156,138.41,138.33,4.0]
[1641741544508,9.85870156,138.41,138.32,7.291]
[1641741544808,2.41832404,138.4,138.32,7.291]
[1641741545408,2.41832404,138.4,138.31,55.32958]
[1641741545810,10.2771256,138.41,138.31,55.32958]
[1641741547011,10.2771256,138.41,138.31,59.32958]
[1641741547210,10.2771256,138.41,138.31,64.33258]
[1641741547411,10.2771256,138.41,138.33,4.0]
[1641741547610,10.2771256,138.41,138.31,64.33258]
[1641741547811,10.2771256,138.41,138.31,66.13858]
[1641741548011,10.2771256,138.41,138.33,4.0]
[1641741548212,12.2771256,138.41,138.34,4.0]
[1641741548410,12.2771256,138.41,138.34,18.99138954]
[1641741548613,12.2771256,138.41,138.35,4.10638212]
[1641741548811,2.0,138.41,138.35,4.10638212]
[1641741549012,2.0,138.41,138.35,8.10638212]
[1641741549213,2.0,138.41,138.39,27.66479]
[1641741549412,2.0,138.41,138.39,34.53879]
[1641741549613,2.41832404,138.43,138.39,34.53879]
[1641741549811,3.9999,138.47,138.39,34.53879]
[1641741550012,27.66479,138.49,138.39,34.53879]
[1641741550213,1.9999,138.47,138.41,2.0001]
[1641741550414,1.9999,138.49,138.41,2.0001]
[1641741550613,7.22438954,138.5,138.42,2.0001]
[1641741550815,2.41052231,138.48,138.46,2.0001]
[1641741551014,2.41052231,138.48,138.47,2.0001]
[1641741551214,2.41052231,138.48,138.47,29.66489]
[1641741551817,2.41052231,138.51,138.47,27.66479]
[1641741552215,1.9999,138.48,138.34,1.805]
[1641741552515,6.988,138.48,138.42,2.0001]
[1641741553115,2.41052231,138.47,138.42,2.0001]
[1641741553317,30.07531231,138.47,138.42,2.0001]
[1641741553518,38.39031231,138.47,138.39,2.0001]
[1641741553718,1.9999,138.43,138.38,27.66479]
[1641741553917,9.441,138.43,138.38,27.66479]
[1641741554119,9.441,138.43,138.39,2.0001]
[1641741554919,9.441,138.43,138.4,2.0001]
[1641741555319,2.0,138.48,138.38,27.66479]
[1641741555520,2.0,138.48,138.43,2.0001]
[1641741555723,2.0,138.48,138.42,2.0001]
[1641741555921,2.0,138.48,138.43,2.0001]
[1641741556121,2.0,138.48,138.38,94.96749]
[1641741556323,2.0,138.48,138.47,2.0001]
[1641741556523,2.0,138.48,138.47,10.8651]
[1641741556930,15.19810235,138.53,138.47,10.8651]
[1641741557123,15.19810235,138.53,138.51,2.0001]
[1641741557323,15.19810235,138.53,138.51,8.1141]
[1641741557523,13.19810235,138.57,138.52,2.0001]
[1641741557724,13.19810235,138.57,138.51,6.114]
[1641741557925,13.19810235,138.57,138.55,2.0001]
[1641741558126,13.19810235,138.57,138.55,5.828]
[1641741558424,60.16846318,138.64,138.56,6.0001]
[1641741558625,60.16846318,138.64,138.63,2.0001]
[1641741558826,62.16836318,138.69,138.63,6.514]
[1641741559025,60.16846318,138.69,138.63,6.514]
[1641741559225,87.83325318,138.69,138.64,2.0001]
[1641741559426,87.83325318,138.69,138.65,2.0001]
[1641741560026,27.66479,138.71,138.63,6.514]
[1641741560230,27.66479,138.71,138.68,2.0001]
[1641741560525,27.66479,138.71,138.68,6.566]
[1641741560926,2.0,138.64,138.62,65.064]
[1641741561225,2.0,138.64,138.63,2.0001]
[1641741561826,27.66479,138.71,138.63,2.0001]
[1641741562029,27.66479,138.71,138.63,9.481]
[1641741562227,27.66479,138.71,138.66,2.0001]
[1641741562427,25.66479,138.71,138.65,2.0001]
[1641741562826,25.66479,138.71,138.62,70.1136]
[1641741563027,25.66479,138.71,138.62,68.1135]
[1641741563226,25.66479,138.71,138.63,2.0001]
[1641741563426,25.66479,138.71,138.62,68.1135]
[1641741563626,27.66469,138.71,138.62,70.1136]
[1641741563827,1.9999,138.68,138.6,29.66489]
[1641741564030,7.21604849,138.66,138.56,70.4142]
[1641741564228,7.21604849,138.66,138.56,1.803]
[1641741564229,7.21735051,138.63,138.56,1.803]
[1641741564428,14.27435051,138.63,138.51,67.8866]
[1641741564630,7.21839246,138.61,138.51,67.8866]
[1641741564829,1.9999,138.6,138.53,2.0001]
[1641741565029,1.9999,138.6,138.54,2.0001]
[1641741565228,27.66479,138.61,138.56,2.0001]
[1641741565629,27.66479,138.61,138.6,2.0001]
[1641741565829,27.66479,138.63,138.6,2.0001]
[1641741566030,27.66479,138.63,138.59,2.0001]
[1641741566329,1.9999,138.62,138.54,2.0001]
[1641741566528,35.38579,138.63,138.53,2.0001]
[1641741566729,7.218653,138.61,138.53,2.0001]
[1641741567230,27.66479,138.58,138.53,2.0001]
[1641741567428,27.66479,138.58,138.56,2.0001]
[1641741567628,27.66479,138.63,138.55,6.595]
[1641741567829,2.0,138.63,138.55,6.595]
[1641741568028,2.0,138.63,138.6,2.0001]
[1641741568229,2.0,138.63,138.52,17.77200722]
[1641741568530,2.0,138.63,138.59,2.0001]
[1641741569129,2.0,138.63,138.62,2.0001]
[1641741569328,2.0,138.63,138.62,7.2]
[1641741570028,2.0,138.63,138.62,9.2001]
[1641741570229,27.66479,138.69,138.62,7.2]
[1641741570630,25.66479,138.69,138.62,9.2001]
[1641741571433,25.66479,138.69,138.62,7.2]
[1641741571632,25.66479,138.69,138.62,9.2001]
[1641741572132,27.66469,138.69,138.62,9.2001]
[1641741572334,27.66469,138.69,138.62,7.2]
[1641741572532,1.9999,138.68,138.62,7.2]
[1641741572733,1.9999,138.68,138.58,29.66489]
[1641741573033,7.21552782,138.67,138.58,27.66479]
[1641741573233,9.21542782,138.67,138.58,29.66489]
[1641741573433,7.21552782,138.67,138.58,27.66479]
[1641741573633,1.9999,138.66,138.59,2.0001]
[1641741573833,1.9999,138.67,138.58,27.66479]
[1641741574034,55.32948,138.69,138.61,2.0001]
[1641741574234,2.0,138.63,138.61,2.0001]
[1641741574936,2.0,138.63,138.55,74.3725]
[1641741575134,2.0,138.63,138.57,2.0001]
[1641741575636,2.0,138.63,138.55,2.0001]
[1641741575837,2.0,138.63,138.53,27.66479]
[1641741576036,2.0,138.63,138.56,2.0001]
[1641741576441,9.21735051,138.63,138.55,2.0001]
[1641741576739,1.9999,138.56,138.52,69.221]
[1641741576939,6.868,138.56,138.49,71.1161]
[1641741577141,6.868,138.56,138.45,4.0]
[1641741577446,6.868,138.56,138.52,2.0001]
[1641741577644,6.868,138.56,138.47,34.88266145]
[1641741577944,6.868,138.56,138.48,4.10238977]
[1641741578144,6.868,138.56,138.5,2.0001]
[1641741578343,27.66479,138.58,138.48,15.31974028]
[1641741578543,27.66479,138.58,138.49,4.0]
[1641741578744,27.66479,138.58,138.54,2.0001]
[1641741578944,27.66479,138.58,138.51,2.0001]
[1641741579144,29.66469,138.58,138.51,2.0001]
[1641741579345,29.66469,138.58,138.5,69.328]
[1641741579546,1.9999,138.57,138.5,71.3281]
[1641741579746,29.66469,138.58,138.52,2.0001]
[1641741579947,29.66469,138.58,138.5,69.328]
[1641741580346,29.66469,138.58,138.5,71.3281]
[1641741580547,27.66479,138.58,138.5,69.328]
[1641741580747,34.88474596,138.58,138.46,1.804]
[1641741580946,1.9999,138.52,138.45,7.218653]
[1641741581146,9.454,138.52,138.45,7.218653]
[1641741581547,37.11879,138.52,138.48,2.0001]
[1641741581747,27.66479,138.58,138.51,2.0001]
[1641741581946,27.66479,138.58,138.51,8.474]
[1641741582348,29.66469,138.58,138.51,10.4741]
[1641741582550,27.66479,138.58,138.51,8.474]
[1641741583048,27.66479,138.58,138.53,2.0001]
[1641741583248,27.66479,138.58,138.51,10.4741]
[1641741584249,27.66479,138.58,138.53,2.0001]
[1641741584551,2.40289873,138.57,138.51,10.4741]
[1641741584948,4.40279873,138.57,138.51,8.474]
[1641741585551,27.66479,138.53,138.48,27.66479]
[1641741586149,27.66479,138.53,138.5,2.0001]
[1641741586550,27.66479,138.58,138.51,2.0001]
[1641741586751,27.66479,138.58,138.54,2.0001]
[1641741586952,27.66479,138.58,138.55,2.0001]
[1641741587353,27.66479,138.58,138.54,7.091]
[1641741587553,7.21969533,138.59,138.54,7.091]
[1641741587755,1.9999,138.58,138.54,7.091]
[1641741587955,1.9999,138.58,138.34,10.76]
[1641741587956,7.22125939,138.56,138.45,1.804]
[1641741588254,1.9999,138.55,138.45,2.0001]
[1641741588453,1.9999,138.51,138.45,2.0001]
[1641741588655,7.068,138.51,138.45,2.0001]
[1641741588856,7.068,138.51,138.41,71.5255]
[1641741589257,7.068,138.51,138.49,2.0001]
[1641741589457,7.068,138.51,138.45,11.756]
[1641741589658,15.25677189,138.54,138.5,2.0001]
[1641741589857,15.25677189,138.54,138.5,7.7931]
[1641741590060,42.92156189,138.56,138.5,7.7931]
[1641741590364,42.92156189,138.56,138.52,2.0001]
[1641741590959,2.41100763,138.55,138.52,2.0001]
[1641741591358,2.41100763,138.55,138.5,5.793]
[1641741591759,2.41100763,138.55,138.5,7.7931]
[1641741592460,2.41100763,138.55,138.51,2.0001]
[1641741592864,2.41100763,138.55,138.5,5.754]
[1641741593062,2.41100763,138.55,138.53,2.0001]
[1641741593262,2.41100763,138.55,138.53,8.4831]
[1641741593464,2.41100763,138.55,138.53,6.483]
[1641741594265,15.25677189,138.58,138.53,6.483]
[1641741597366,15.25677189,138.58,138.52,2.0001]
[1641741597565,17.25667189,138.58,138.51,29.66489]
[1641741597765,17.25677189,138.58,138.51,29.66489]
[1641741598166,17.66777952,138.57,138.52,2.0001]
[1641741598367,17.66777952,138.57,138.49,2.0001]
[1641741598569,7.22099866,138.56,138.48,69.7655]
[1641741598766,9.22089866,138.56,138.48,69.7655]
[1641741598968,22.47777055,138.56,138.5,2.0001]
[1641741599169,22.47777055,138.56,138.48,69.7655]
[1641741599368,7.22178089,138.55,138.48,2.0001]
[1641741599568,9.22168089,138.55,138.45,2.0001]
[1641741599769,27.66479,138.51,138.43,70.6765]
[1641741599968,7.22412859,138.5,138.4,17.06177189]
[1641741600169,9.22402859,138.5,138.41,2.0001]
[1641741600369,7.22412859,138.5,138.4,84.65307189]
[1641741600571,36.38579,138.51,138.43,2.0001]
[1641741600768,36.38579,138.51,138.41,4.10408591]
[1641741600968,2.41100763,138.49,138.4,69.3963]
[1641741601169,17.66777952,138.49,138.4,69.3963]
[1641741601371,17.66777952,138.49,138.44,4.0]
[1641741601568,17.66777952,138.49,138.44,2.0001]
[1641741601768,17.66777952,138.49,138.45,27.66479]
[1641741602069,42.92156189,138.53,138.45,27.66479]
[1641741602269,42.92156189,138.53,138.47,2.0001]
[1641741602469,42.92156189,138.53,138.47,7.254]
[1641741602670,42.92156189,138.53,138.48,2.0001]
[1641741602870,42.92156189,138.53,138.47,7.254]
[1641741603072,2.41630836,138.52,138.47,7.254]
[1641741603270,2.41630836,138.52,138.51,2.0001]
[1641741603471,2.41630836,138.52,138.51,8.3251]
[1641741603671,2.41630836,138.55,138.51,35.98989]
[1641741603871,2.41630836,138.55,138.51,33.98979]
[1641741604070,2.41630836,138.55,138.53,2.0001]
[1641741604271,2.41630836,138.55,138.54,2.0001]
[1641741604473,2.41630836,138.55,138.54,8.4041]
[1641741604672,2.41630836,138.57,138.54,8.4041]
[1641741605071,2.41630836,138.57,138.55,2.0001]
[1641741605473,2.41630836,138.57,138.51,33.98979]
[1641741605674,17.67308025,138.57,138.52,2.0001]
[1641741606074,17.67308025,138.57,138.53,2.0001]
[1641741606474,15.25677189,138.56,138.51,6.187]
[1641741606672,15.25677189,138.56,138.53,2.0001]
[1641741607074,15.25677189,138.56,138.54,2.0001]
[1641741607274,15.25677189,138.56,138.54,8.081]
[1641741607574,15.25677189,138.56,138.55,2.0001]
[1641741607773,2.41630836,138.57,138.55,57.32968]
[1641741607974,2.0,138.58,138.56,2.0001]
[1641741608275,2.0,138.58,138.57,2.0001]
[1641741608474,2.0,138.58,138.55,2.0001]
[1641741608874,2.0,138.58,138.51,17.40278814]
[1641741609074,2.0,138.58,138.56,2.0001]
[1641741609274,2.0,138.58,138.52,4.0]
[1641741609474,4.41721705,138.58,138.57,2.0001]
[1641741611976,4.41721705,138.58,138.53,27.66479]
[1641741612577,2.0,138.58,138.53,27.66479]
[1641741612776,2.0,138.58,138.56,2.0001]
[1641741613479,2.41647496,138.57,138.53,27.66479]
[1641741614177,2.0,138.58,138.53,27.66479]
[1641741614379,50.2050108,138.63,138.57,2.0001]
[1641741614579,50.2050108,138.63,138.61,2.0001]
[1641741614778,50.2050108,138.63,138.61,8.2001]
[1641741614979,48.2051108,138.63,138.61,8.2001]
[1641741615278,40.36335334,138.65,138.61,6.2]
[1641741615880,40.36335334,138.65,138.6,2.0001]
[1641741616081,40.36335334,138.65,138.61,2.0001]
[1641741616280,20.50360717,138.64,138.61,2.0001]
[1641741616481,20.50360717,138.64,138.6,2.0001]
[1641741616680,20.50360717,138.64,138.57,27.66479]
[1641741616981,8.365,138.64,138.6,2.0001]
[1641741617180,8.365,138.64,138.57,2.0001]
[1641741617381,22.92010454,138.63,138.58,2.0001]
[1641741617581,22.92010454,138.63,138.54,73.4311]
[1641741617780,2.41459598,138.63,138.54,69.4311]
[1641741617980,2.41459598,138.63,138.59,2.0001]
[1641741618181,40.36335334,138.66,138.62,2.0001]
[1641741618382,40.36335334,138.66,138.58,4.0]
[1641741618582,2.0,138.63,138.62,2.0001]
[1641741619783,2.0,138.63,138.59,2.0001]
[1641741619985,2.0,138.63,138.6,2.0001]
[1641741620184,2.0,138.63,138.62,2.0001]
[1641741621388,2.0,138.63,138.62,10.7321]
[1641741623289,1.9999,138.68,138.62,10.7321]
[1641741623489,68.02814334,138.69,138.63,2.0001]
[1641741623691,66.02824334,138.69,138.63,2.0001]
[1641741623892,20.50070916,138.68,138.63,2.0001]
[1641741624393,20.50070916,138.68,138.59,75.4591]
[1641741624691,20.50070916,138.68,138.63,2.0001]
[1641741624892,20.50070916,138.68,138.59,75.4591]
[1641741625591,1.9999,138.66,138.59,71.4591]
[1641741625992,10.8909,138.66,138.6,2.0001]
[1641741626196,20.50070916,138.65,138.6,2.0001]
[1641741626492,20.50070916,138.65,138.59,71.4591]
[1641741626692,20.50070916,138.65,138.6,2.0001]
[1641741627192,20.50070916,138.65,138.62,2.0001]
[1641741627393,22.50070916,138.65,138.62,2.0001]
[1641741627593,2.0,138.65,138.63,2.0001]
[1641741628293,2.0,138.65,138.61,27.66479]
[1641741628497,2.0,138.65,138.64,2.0001]
[1641741629293,2.0,138.65,138.62,9.092]
[1641741629495,9.378,138.65,138.58,29.46779]
[1641741629695,9.378,138.65,138.59,2.0001]
[1641741630295,9.378,138.65,138.58,27.66479]
[1641741630699,9.378,138.65,138.63,2.0001]
[1641741631095,9.378,138.65,138.59,2.0001]
[1641741631298,9.378,138.65,138.58,27.66479]
[1641741631498,9.378,138.65,138.61,2.0001]
[1641741631697,9.378,138.65,138.58,27.66479]
[1641741631897,9.378,138.65,138.62,27.66479]
[1641741633103,9.378,138.65,138.58,27.66479]
[1641741633104,20.50202501,138.64,138.58,27.66479]
[1641741633302,20.50202501,138.64,138.56,2.0001]
[1641741633501,1.9999,138.61,138.55,2.0001]
[1641741633702,10.5629,138.61,138.55,2.0001]
[1641741633904,10.5629,138.61,138.55,29.66489]
[1641741633905,1.9999,138.6,138.55,29.66489]
[1641741634303,10.5629,138.61,138.55,27.66479]
[1641741634503,1.9999,138.61,138.55,27.66479]
[1641741634905,2.41550231,138.59,138.56,2.0001]
[1641741635104,2.41550231,138.59,138.55,27.66479]
[1641741635505,2.41550231,138.59,138.56,2.0001]
[1641741635805,1.9999,138.61,138.56,2.0001]
[1641741636307,12.26332562,138.64,138.6,2.0001]
[1641741636508,75.07506757,138.67,138.63,2.0001]
[1641741636805,19.9710413,138.7,138.65,4.0]
[1641741637005,101.63331315,138.71,138.69,6.0001]
[1641741637205,98.49217776,138.71,138.7,2.0001]
[1641741637405,96.19217776,138.71,138.7,6.0001]
[1641741637606,79.81217776,138.71,138.7,6.0001]
[1641741637905,52.43217776,138.71,138.7,13.20523005]
[1641741638106,28.89217776,138.71,138.7,13.20523005]
[1641741638306,127.04164144,138.75,138.7,13.20523005]
[1641741638506,31.80613948,138.75,138.7,72.63041468]
[1641741638705,18.5253487,138.79,138.7,72.63041468]
[1641741638904,24.75161755,138.8,138.74,20.0]
[1641741639107,91.04164144,138.87,138.74,20.0]
[1641741639406,60.85030769,138.87,138.78,6.0001]
[1641741639606,37.79810769,138.87,138.78,2.0001]
[1641741639808,10.33810769,138.87,138.86,20.0]
[1641741640006,0.35933576,138.89,138.86,20.0]
[1641741640210,122.23447592,138.92,138.86,24.0]
[1641741640412,83.95447592,138.92,138.87,1.8]
[1641741640607,12.41442615,138.95,138.91,11.19114051]
[1641741640807,11.03442615,138.95,138.94,6.0001]
[1641741641007,11.03442615,138.95,138.94,13.1521]
[1641741641208,8.13442615,138.95,138.94,14.9511]
[1641741641409,0.35442615,138.95,138.94,19.04670463]
[1641741641809,0.35442615,138.95,138.94,10.9511]
[1641741642009,0.35442615,138.95,138.94,40.81689]
[1641741642209,0.35442615,138.95,138.94,36.81689]
[1641741642811,0.35442615,138.95,138.94,40.81689]
[1641741643012,0.35442615,138.95,138.94,36.81689]
[1641741645614,0.35442615,138.95,138.94,40.81689]
[1641741645812,1.9999,139.05,138.94,40.81689]
[1641741646015,1.9999,139.05,139.01,27.66479]
[1641741646213,1.9999,139.06,139.02,2.0001]
[1641741646413,29.66469,139.08,139.02,2.0001]
[1641741646615,29.66469,139.08,139.01,36.15879]
[1641741647013,1.9999,139.04,139.01,36.15879]
[1641741647213,1.9999,139.05,139.01,36.15879]
[1641741647413,1.9999,139.06,139.01,36.15879]
[1641741647614,1.9999,139.07,139.01,36.15879]
[1641741647814,3.9999,139.07,139.02,0.0001]
[1641741648017,3.9999,139.08,139.02,0.0001]
[1641741648219,1.9999,139.09,139.02,2.0001]
[1641741648417,1.9999,139.11,139.04,2.0001]
[1641741648620,1.9999,139.13,139.04,9.5631]
[1641741648818,1.9999,139.11,139.04,7.563]
[1641741649220,1.9999,139.09,139.04,7.563]
[1641741649623,1.9999,139.07,139.02,2.0001]
[1641741649921,29.66469,139.07,139.02,2.0001]
[1641741650120,1.9999,139.06,139.01,29.66489]
[1641741650322,1.9999,139.05,139.01,29.66489]
[1641741650521,1.9999,139.02,139.01,27.66479]
[1641741650721,9.2379,139.02,138.97,2.0001]
[1641741650926,1.9999,139.01,138.97,2.0001]
[1641741651122,1.9999,139.0,138.96,2.0001]
[1641741651322,1.9999,139.01,138.95,2.0001]
[1641741651524,1.9999,139.0,138.94,2.0001]
[1641741651724,1.9999,139.04,138.97,2.0001]
[1641741652022,1.9999,139.03,138.97,27.66479]
[1641741652222,1.9999,139.03,138.95,2.0001]
[1641741652423,1.9999,139.02,138.94,27.66479]
[1641741652624,1.9999,138.99,138.94,29.66489]
[1641741653024,1.9999,139.0,138.94,29.66489]
[1641741653226,1.9999,138.99,138.91,7.19476221]
[1641741653425,8.851,139.05,138.93,2.0001]
[1641741653626,8.851,139.05,138.92,2.0001]
[1641741653829,1.9999,138.96,138.9,2.0001]
[1641741654025,27.66479,138.95,138.88,27.66479]
[1641741654227,1.9999,138.92,138.88,27.66479]
[1641741654426,1.9999,138.91,138.83,1.799]
[1641741654726,1.9999,138.91,138.84,4.09133396]
[1641741654925,8.069,138.92,138.86,2.0001]
[1641741654926,1.9999,138.92,138.86,2.0001]
[1641741655126,29.66469,138.97,138.84,4.09133396]
[1641741655325,29.66469,138.97,138.89,2.0001]
[1641741655526,1.9999,138.96,138.85,5.799]
[1641741655725,1.9999,138.96,138.85,9.89033396]
[1641741655926,29.66469,138.97,138.91,2.0001]
[1641741656127,34.86265943,139.01,138.88,34.86110549]
[1641741656327,69.9541,139.04,138.94,2.0001]
[1641741656527,7.19398583,139.08,138.94,9.5241]
[1641741656731,1.9999,139.03,138.94,7.524]